Workbook

Sheet Sheet1
B2: TBDY-2018 KGM TAŞ İSTİNAT DUVAR BOYUTLANDIRMASI (inş.müh. Gürcan BERBEROĞLU tel:0532 366 02 04 www.betoncelik.com )
P3: Dikkat sadece sarı hücrelere data girilecek.
AN5: =+AM7+AF30*AT31/AU33 -> 2.61 | AP5: m
AM7: =AL9+AF21*AT31/AU33 -> 1.88 | AO7: m
AL9: =+AJ11+AO11 -> 1.65 | AN9: m | BI9: Karayolları Genel Müdürlüğü sitesindeki örnek paftalardaki en kesit esas alınmıştır.
BI10: https://www.kgm.gov.tr/SiteCollectionDocuments/KGMdocuments/MerkezBirimler/EtutProjeveCevreDairesiBaskanligi/Calismalar/Ornekpaftalar.pdf
AJ11: 1.15 | AL11: m | AO11: 0.5 | AQ11: m | AS11: =+AB34*AT31/AU33 -> 1.6 | AU11: m
AN13: =+AO11-AP13 -> 0.2 | AP13: 0.3 | AR13: m
AA17: =(AJ11+(AO11-AP13))*TAN(AJ18*PI()/180) -> 0.238041424 | AC17: m
AJ18: 10 | AL18: °
AF20: m | AK20: 1
AF21: =+AJ21*AJ11/AK20 -> 1.15 | AJ21: 1
AD27: m
AD28: =AB34*0.6 -> 4.8 | BB28: m
AF29: m | BB29: =+Z34-BB46 -> 6.901923077
D30: Taş İstinat duvarı enkesit alanı | AF30: =+AD28-AF21 -> 3.65
D31: W1 =( | F31: =+AO11 -> 0.5 | H31: + | I31: =+AM7-AJ11 -> 0.73 | K31: )/ | L31: 2 | M31: * | N31: =+AF21 -> 1.15 | P31: = | Q31: =(F31+I31)/L31*N31 -> 0.70725 | T31: m² | X31: m | AD31: 0,6 * H = | AT31: 1
D32: W2 = | F32: =+AJ11 -> 1.15 | H32: * | I32: =+AF21 -> 1.15 | K32: / | L32: 2 | M32: = | N32: =+F32*I32/L32 -> 0.66125 | Q32: m² | X32: =+Z34+AA17 -> 8.739964501
D33: W3 =( | F33: =+AM7 -> 1.88 | H33: + | I33: =+AN5 -> 2.61 | K33: )/ | L33: 2 | M33: * | N33: =+AF30 -> 3.65 | P33: = | Q33: =(F33+I33)/L33*N33 -> 8.19425 | T33: m² | Z33: m | AB33: m | AU33: 5
D34: W4 = | F34: =+AN5 -> 2.61 | H34: * | I34: =+AF42 -> 3.2 | K34: = | L34: =+F34*I34 -> 8.352 | O34: m² | Z34: =+AB34+AA49 -> 8.501923077 | AB34: 8
D35: W5 = | F35: =+AO52 -> 2.509615385 | H35: * | I35: =+AE49 -> 0.5019230769 | K35: / | L35: 2 | M35: = | N35: =+F35*I35/L35 -> 0.6298169379 | Q35: m² | X35: H' =
D36: W6 = | F36: =+AO54-AO52 -> 0.1003846154 | H36: * | I36: =+AE49 -> 0.5019230769 | K36: / | L36: 2 | M36: = | N36: =+F36*I36/L36 -> 0.02519267751 | Q36: m²
D37: W = W1 + W2 + W3 + W4 + W5 + W6 = | P37: =+N36+N35+L34+Q33+N32+Q31 -> 18.56975962 | S37: m² | AB37: H =
AF41: m
AD42: m | AF42: =+AB34-AF30-AF21 -> 3.2
AD43: =+AF42+AE49 -> 3.701923077
AW44: =IF(AX45>1,"","artır.") ->  | AX44: m
AX45: =+BB46-AE49 -> 1.098076923 | BB45: m
AI46: =+AU33 -> 5 | BB46: 1.6
AI48: =+AT31 -> 1
AA49: =+AE49 -> 0.5019230769 | AC49: m | AE49: =AO54/(TAN((ATAN(AT31/AU33)*180/PI())*PI()/180)+TAN((90-ATAN(AT31/AU33)*180/PI())*PI()/180)) -> 0.5019230769 | AG49: m | AW49: =+AE49 -> 0.5019230769 | AY49: m
AQ50: =+AT31 -> 1
AO51: =+AU33 -> 5
AI52: =AD43*AI48/AI46 -> 0.7403846154 | AO52: =AE49/(AT31/AU33) -> 2.509615385 | AQ52: m
AO54: =+AN5 -> 2.61 | AQ54: m
AP58: =AO54*COS(ATAN(AT31/AU33)) -> 2.559315564 | AR58: m
